[Event "CZE-ch 2020"]
[Site "Pilsen"]
[Date "2020.08.27"]
[Round "5.28"]
[White "Frank, Adam"]
[Black "Nagy, Ladislav"]
[Result "1-0"]
[ECO "C99"]
[WhiteElo "2219"]
[BlackElo "2150"]
[Annotator "ChessBase"]
[PlyCount "137"]
[EventDate "2020.08.23"]
[EventType "swiss"]
[EventCountry "CZE"]
[SourceTitle "playchess.com"]
[Source "ChessBase"]
[SourceQuality "1"]
[TimeControl "40/5400+30:1800+30"]

1. e4 {[%emt 0:00:00]} e5 {[%emt 0:00:00]} 2. Nf3 {[%emt 0:00:00]} Nc6 {[%emt 0:00:00]} 3. Bb5 {[%emt 0:00:00]} a6 {[%emt 0:00:00]} 4. Ba4 {[%emt 0:00:00]} Nf6 {[%emt 0:00:36]} 5. O-O {[%emt 0:00:00]} Be7 {[%emt 0:00:46]} 6. Re1 {[%emt 0:00:00]} b5 {[%emt 0:00:27]} 7. Bb3 {[%emt 0:00:00]} d6 {[%emt 0:00:50]} 8. c3 {[%emt 0:00:00]} O-O {[%emt 0:00:59]} 9. h3 {[%emt 0:00:00]} Na5 {[%emt 0:00:54]} 10. Bc2 {[%emt 0:00:05]} c5 {[%emt 0:00:52]} 11. d4 {[%emt 0:00:04]} Qc7 {[%emt 0:00:47]} 12. Nbd2 {[%emt 0:00:05]} cxd4 {[%emt 0:01:24]} 13. cxd4 {[%emt 0:00:04]} Nc6 {[%emt 0:01:37]} 14. Nb3 {[%emt 0:00:04]} a5 {[%emt 0:00:53]} 15. Be3 {[%emt 0:00:04]} a4 {[%emt 0:00:39]} 16. Nbd2 {[%emt 0:00:03]} Bd7 {[%emt 0:00:51]} 17. Rc1 {[%emt 0:01:39]} Qb7 {[%emt 0:02:10]} 18. Nf1 {[%emt 0:02:33]} Rfc8 {[%emt 0:02:02]} 19. Ng3 {[%emt 0:01:32]} Bd8 {[%emt 0:03:24]} 20. Bb1 {[%emt 0:09:50]} h6 {[%emt 0:04:09]} 21. Nh4 {[%emt 0:05:40]} Ne7 {[%emt 0:09:02]} 22. Qf3 {[%emt 0:13:11]} Rxc1 {[%emt 0:14:08]} 23. Rxc1 {[%emt 0:00:28]} Rc8 {[%emt 0:04:26]} 24. Rd1 {[%emt 0:00:46]} Qc7 {[%emt 0:18:01]} 25. Kh2 {[%emt 0:06:11]} Be6 {[%emt 0:04:29]} 26. Nh5 {[%emt 0:12:19]} Nxh5 {[%emt 0:03:23]} 27. Qxh5 {[%emt 0:00:09]} Bd7 {[%emt 0:07:06]} 28. Rd3 {[%emt 0:06:33]} Be8 {[%emt 0:06:36]} 29. Bxh6 {[%emt 0:02:22]} gxh6 {[%emt 0:04:50]} 30. Qg4+ {[%emt 0:02:39]} Kh7 {[%emt 0:04:46]} 31. Rg3 {[%emt 0:02:55]} Ng6 {[%emt 0:01:04]} 32. Nxg6 {[%emt 0:00:16]} fxg6 {[%emt 0:02:06]} 33. Rc3 {[%emt 0:00:04]} Bc6 {[%emt 0:00:41]} 34. d5 {[%emt 0:00:04]} Qd7 {[%emt 0:02:07]} 35. dxc6 {[%emt 0:00:15]} Qxg4 {[%emt 0:00:02]} 36. hxg4 {[%emt 0:00:06]} Bb6 {[%emt 0:00:51]} 37. Bd3 {[%emt 0:08:08]} b4 {[%emt 0:00:05]} 38. Rc1 {[%emt 0:00:28]} Rc7 {[%emt 0:01:16]} 39. Bb5 a3 {[%emt 0:00:35]} 40. bxa3 {[%emt 0:01:45]} bxa3 {[%emt 0:00:03]} 41. f3 {[%emt 0:31:15]} Kg7 {[%emt 0:09:46]} 42. Ba4 {[%emt 0:00:00]} Bd4 {[%emt 0:02:38]} 43. Bb3 {[%emt 0:00:00]} Kf6 {[%emt 0:06:33]} 44. Bd5 {[%emt 0:00:00]} Ke7 {[%emt 0:01:28]} 45. Rc4 {[%emt 0:00:00]} Bc5 {[%emt 0:00:43]} 46. Rc3 {[%emt 0:00:00]} Kd8 {[%emt 0:02:55]} 47. Rb3 {[%emt 0:00:00]} g5 {[%emt 0:03:26]} 48. Rb8+ {[%emt 0:00:00]} Rc8 {[%emt 0:00:20]} 49. Rb7 {[%emt 0:00:00]} Rc7 {[%emt 0:00:27]} 50. Rb3 {[%emt 0:00:00]} Rc8 {[%emt 0:01:28]} 51. g3 {[%emt 0:00:00]} Rc7 {[%emt 0:00:13]} 52. Kg2 {[%emt 0:00:00]} Rc8 {[%emt 0:00:29]} 53. Kf1 {[%emt 0:00:00]} Rc7 {[%emt 0:00:24]} 54. Ke2 {[%emt 0:00:00]} Rc8 {[%emt 0:00:31]} 55. Kd3 {[%emt 0:00:00]} Rc7 {[%emt 0:00:46]} 56. Kc4 {[%emt 0:00:00]} Rc8 {[%emt 0:01:01]} 57. Rb1 {[%emt 0:00:00]} Rc7 {[%emt 0:00:50]} 58. Rh1 {[%emt 0:00:00]} Rh7 {[%emt 0:00:48]} 59. Be6 {[%emt 0:00:00]} Kc7 {[%emt 0:01:18]} 60. Bd7 {[%emt 0:00:00]} Rh8 {[%emt 0:01:30]} 61. Kd5 {[%emt 0:00:00]} Rb8 {[%emt 0:02:59]} 62. Rxh6 {[%emt 0:00:00]} Rb2 {[%emt 0:00:07]} 63. Rh8 {[%emt 0:00:00]} Rxa2 {[%emt 0:00:48]} 64. Rc8+ {[%emt 0:00:00]} Kb6 {[%emt 0:00:09]} 65. Rb8+ {[%emt 0:00:00]} Kc7 {[%emt 0:01:20]} 66. Rb7+ {[%emt 0:00:00]} Kd8 {[%emt 0:00:04]} 67. Ke6 {[%emt 0:00:00]} Bb6 {[%emt 0:00:00]} 68. Rb8+ {[%emt 0:00:00]} Kc7 {[%emt 0:00:00]} 69. Rc8# 1-0

[Event "CZE-ch 2020"]
[Site "Pilsen"]
[Date "2020.08.27"]
[Round "5.29"]
[White "Vorisek, Jakub"]
[Black "Laurincova, Kristyna"]
[Result "1/2-1/2"]
[ECO "B90"]
[WhiteElo "2205"]
[BlackElo "2008"]
[Annotator "ChessBase"]
[PlyCount "67"]
[EventDate "2020.08.23"]
[EventType "swiss"]
[EventCountry "CZE"]
[SourceTitle "playchess.com"]
[Source "ChessBase"]
[SourceQuality "1"]
[TimeControl "40/5400+30:1800+30"]

1. e4 {[%emt 0:00:00]} c5 {[%emt 0:00:00]} 2. Nf3 {[%emt 0:00:12]} d6 {[%emt 0:00:00]} 3. d4 {[%emt 0:00:26]} cxd4 {[%emt 0:00:00]} 4. Nxd4 {[%emt 0:00:20]} Nf6 {[%emt 0:00:00]} 5. Nc3 {[%emt 0:00:18]} a6 {[%emt 0:00:04]} 6. a3 {[%emt 0:00:21]} e5 {[%emt 0:00:41]} 7. Nf5 {[%emt 0:00:30]} d5 {[%emt 0:00:29]} 8. Bg5 {[%emt 0:00:18]} d4 {[%emt 0:00:16]} 9. Bxf6 {[%emt 0:00:17]} gxf6 {[%emt 0:00:06]} 10. Ne2 {[%emt 0:00:14]} Bxf5 {[%emt 0:01:22]} 11. exf5 {[%emt 0:00:07]} Qa5+ {[%emt 0:01:39]} 12. b4 {[%emt 0:02:04]} Qc7 {[%emt 0:08:46]} 13. Qd2 {[%emt 0:09:06]} Nd7 {[%emt 0:14:39]} 14. Ng3 {[%emt 0:03:25]} Bh6 {[%emt 0:03:20]} 15. Qd3 {[%emt 0:08:25]} Rc8 {[%emt 0:03:42]} 16. Ra2 {[%emt 0:08:54]} Nb6 {[%emt 0:17:46]} 17. Be2 {[%emt 0:03:00]} Nd5 {[%emt 0:16:49]} 18. O-O {[%emt 0:03:25]} Nc3 {[%emt 0:05:35]} 19. Rb2 {[%emt 0:00:16]} Rg8 {[%emt 0:04:37]} 20. Bf3 {[%emt 0:02:56]} Kf8 {[%emt 0:05:41]} 21. Re1 {[%emt 0:03:35]} b5 {[%emt 0:03:30]} 22. Ne4 {[%emt 0:20:44]} Nxe4 {[%emt 0:10:32]} 23. Qxe4 {[%emt 0:03:27]} Qc3 {[%emt 0:00:44]} 24. Ra2 {[%emt 0:01:03]} Kg7 {[%emt 0:00:52]} 25. Rb1 {[%emt 0:01:26]} Rgd8 {[%emt 0:00:40]} 26. Be2 {[%emt 0:02:36]} Qc6 {[%emt 0:00:33]} 27. Qxc6 {[%emt 0:03:25]} Rxc6 {[%emt 0:00:04]} 28. Bd3 {[%emt 0:00:10]} Bd2 {[%emt 0:00:59]} 29. g3 {[%emt 0:00:45]} Re8 {[%emt 0:00:28]} 30. f3 {[%emt 0:00:37]} Rec8 {[%emt 0:00:24]} 31. Kf1 {[%emt 0:02:32]} Rb8 {[%emt 0:00:34]} 32. Ke2 {[%emt 0:00:33]} Bc3 {[%emt 0:00:12]} 33. g4 {[%emt 0:05:18]} h6 {[%emt 0:00:25]} 34. h4 {[%emt 0:01:48]} 1/2-1/2

[Event "CZE-ch 2020"]
[Site "Pilsen"]
[Date "2020.08.27"]
[Round "5.30"]
[White "Janous, Marek"]
[Black "Novotny, Martin"]
[Result "1/2-1/2"]
[ECO "C02"]
[WhiteElo "1968"]
[BlackElo "2180"]
[Annotator "NA"]
[PlyCount "106"]
[EventDate "2020.08.23"]
[EventType "swiss"]
[EventCountry "CZE"]
[SourceTitle "playchess.com"]
[Source "ChessBase"]
[SourceQuality "1"]
[TimeControl "40/5400+30:1800+30"]

1. e4 {[%emt 0:00:00]} e6 {[%emt 0:01:01]} 2. d4 {[%emt 0:00:22]} d5 {[%emt 0:00:08]} 3. e5 {[%emt 0:01:41]} c5 {[%emt 0:00:07]} 4. c3 {[%emt 0:00:04]} Qb6 {[%emt 0:00:17]} 5. Nf3 {[%emt 0:00:18]} Nc6 {[%emt 0:01:19]} 6. Be2 {[%emt 0:00:10]} cxd4 {[%emt 0:01:17]} 7. cxd4 {[%emt 0:00:06]} Nh6 {[%emt 0:00:34]} 8. Nc3 {[%emt 0:00:07]} Nf5 {[%emt 0:02:02]} 9. Kf1 {[%emt 0:02:59]} Bd7 {[%emt 0:19:46]} 10. Na4 {[%emt 0:07:33]} Qa5 {[%emt 0:16:04]} 11. Bd2 {[%emt 0:03:14] C02: French: Advance Variation.} Bb4 {[%emt 0:00:15]} 12. Bxb4 {[%emt 0:01:34]} Qxb4 {[%emt 0:02:46]} 13. a3 {[%emt 0:00:49]} Qe7 {[%emt 0:00:59]} 14. Rc1 {[%emt 0:06:19]} Rc8 {[%emt 0:03:22] [#]} 15. b4 $146 {[%emt 0:01:47]} ({Predecessor:} 15. g3 O-O 16. Kg2 f6 17. Re1 fxe5 18. dxe5 Na5 19. Rxc8 Rxc8 20. Bd3 g6 21. Nc3 {½-½ (29) Paulovic,M (2240)-Blecha,M Czechia 1999}) 15... O-O {[%emt 0:05:42]} 16. Nc5 {[%emt 0:00:47]} b6 {[%emt 0:03:31]} 17. Nxd7 {[%emt 0:01:47]} Qxd7 {[%emt 0:01:30]} 18. Bb5 {[%emt 0:00:36]} Qb7 {[%emt 0:01:30]} 19. g3 {[%emt 0:03:48]} Nb8 {[%emt 0:01:08]} (19... a6 $5 {[%cal Ra6b5]} 20. Be2 f6 $11) 20. Kg2 {[%emt 0:06:36]} Rxc1 {[%emt 0:00:35]} 21. Qxc1 {[%emt 0:00:04]} Rc8 {[%emt 0:00:07]} 22. Qd2 {[%emt 0:00:53]} Qc7 {[%emt 0:00:42]} 23. Rd1 {[%emt 0:01:15]} Qc3 {[%emt 0:04:13]} 24. Qxc3 {[%emt 0:00:49]} Rxc3 {[%emt 0:00:30]} 25. Rd3 {[%emt 0:00:09]} Rc1 {[%emt 0:02:25]} 26. Rb3 {[%emt 0:01:10]} Nc6 {[%emt 0:07:10]} 27. Rd3 {[%emt 0:01:57]} Kf8 {[%emt 0:00:52]} 28. Bxc6 {[%emt 0:01:45]} Rxc6 {[%emt 0:00:04]} 29. Nd2 {[%emt 0:00:04]} Ke8 {[%emt 0:01:42]} 30. g4 {[%emt 0:00:50]} Ne7 {[%emt 0:02:16]} 31. f4 {[%emt 0:03:15]} Kd7 {[%emt 0:02:25]} 32. Kg3 {[%emt 0:05:01]} Rc2 {[%emt 0:00:36]} 33. b5 {[%emt 0:00:40]} Kc7 {[%emt 0:03:46]} 34. h4 {[%emt 0:04:10]} Kb7 {[%emt 0:00:35]} (34... Rb2 $17 35. Nf3 h6 36. Rc3+ Kd7) 35. Nf3 {[%emt 0:01:06]} h6 {[%emt 0:00:53]} 36. Rb3 {[%emt 0:22:17]} (36. h5 $15) 36... a6 {[%emt 0:01:19]} 37. bxa6+ {[%emt 0:01:24]} Kxa6 {[%emt 0:00:14]} 38. h5 {[%emt 0:01:33]} Rc1 {[%emt 0:04:04]} 39. Rd3 {[%emt 0:00:59]} Ka5 {[%emt 0:00:58]} 40. Kf2 {[%emt 0:02:37]} Ka4 {[%emt 0:06:20]} 41. Kg3 {[%emt 0:30:31]} Rc2 {[%emt 0:13:37]} 42. Re3 {[%emt 0:00:00]} g6 {[%emt 0:16:24]} 43. hxg6 {[%emt 0:00:00]} fxg6 {[%emt 0:00:09]} 44. Nh4 {[%emt 0:00:00]} Ra2 {[%emt 0:00:38]} 45. f5 {[%emt 0:00:00]} gxf5 {[%emt 0:03:14]} 46. gxf5 {[%emt 0:00:00]} exf5 {[%emt 0:00:18]} 47. Kf4 $11 {[%emt 0:00:00]} Rf2+ {[%emt 0:02:21]} 48. Nf3 {[%emt 0:00:00]} Kb5 {[%emt 0:00:33]} 49. Rb3+ {[%emt 0:00:00]} Kc6 {[%emt 0:00:17]} 50. Rc3+ {[%emt 0:00:00]} Kd7 {[%emt 0:00:33]} 51. Kg3 {[%emt 0:00:00]} Re2 {[%emt 0:00:51]} 52. Rb3 {[%emt 0:00:00]} Kc6 {[%emt 0:00:30]} 53. Rc3+ {[%emt 0:00:00]} Kd7 {[%emt 0:00:09]} 1/2-1/2

[Event "CZE-ch 2020"]
[Site "Pilsen"]
[Date "2020.08.27"]
[Round "5.31"]
[White "Pokrupa, Marek"]
[Black "Hlozek, David"]
[Result "0-1"]
[ECO "B20"]
[WhiteElo "2164"]
[BlackElo "2037"]
[Annotator "ChessBase"]
[PlyCount "92"]
[EventDate "2020.08.23"]
[EventType "swiss"]
[EventCountry "CZE"]
[SourceTitle "playchess.com"]
[Source "ChessBase"]
[SourceQuality "1"]
[TimeControl "40/5400+30:1800+30"]

1. e4 {[%emt 0:00:03]} c5 {[%emt 0:00:00]} 2. g3 {[%emt 0:00:05]} d6 {[%emt 0:02:14]} 3. Bg2 {[%emt 0:00:08]} Nf6 {[%emt 0:00:43]} 4. Ne2 {[%emt 0:01:32]} g6 {[%emt 0:00:58]} 5. O-O {[%emt 0:02:57]} Bg7 {[%emt 0:00:37]} 6. d4 {[%emt 0:07:05]} cxd4 {[%emt 0:00:20]} 7. Nxd4 {[%emt 0:00:03]} O-O {[%emt 0:00:46]} 8. c4 {[%emt 0:04:20]} a6 {[%emt 0:01:38]} 9. Nc3 {[%emt 0:01:13]} Qc7 {[%emt 0:01:01]} 10. Qe2 {[%emt 0:09:30]} Nc6 {[%emt 0:02:45]} 11. Nc2 {[%emt 0:02:33]} Bd7 {[%emt 0:13:27]} 12. a4 {[%emt 0:16:54]} Na5 {[%emt 0:05:14]} 13. Ne3 {[%emt 0:01:35]} Be6 {[%emt 0:09:00]} 14. Ned5 {[%emt 0:06:44]} Bxd5 {[%emt 0:02:24]} 15. cxd5 {[%emt 0:01:48]} Nb3 {[%emt 0:04:46]} 16. Ra3 {[%emt 0:01:24]} Nxc1 {[%emt 0:01:11]} 17. Rxc1 {[%emt 0:00:04]} Nd7 {[%emt 0:08:37]} 18. a5 {[%emt 0:01:55]} b6 {[%emt 0:10:04]} 19. axb6 {[%emt 0:05:46]} Qxb6 {[%emt 0:00:24]} 20. Na4 {[%emt 0:01:17]} Qb7 {[%emt 0:02:16]} 21. Bh3 {[%emt 0:03:48]} Rfb8 {[%emt 0:05:37]} 22. Bxd7 {[%emt 0:06:46]} Qxd7 {[%emt 0:00:06]} 23. Rc6 {[%emt 0:00:16]} Qb7 {[%emt 0:08:19]} 24. Qc2 {[%emt 0:02:01]} Qb4 {[%emt 0:01:21]} 25. Rc4 {[%emt 0:05:15]} Qe1+ {[%emt 0:01:19]} 26. Kg2 {[%emt 0:00:07]} Bf6 {[%emt 0:01:22]} 27. Re3 {[%emt 0:02:55]} Qa5 {[%emt 0:01:32]} 28. Rb3 {[%emt 0:03:04]} Kg7 {[%emt 0:04:20]} 29. h3 {[%emt 0:05:55]} Rb5 {[%emt 0:03:11]} 30. Nc3 {[%emt 0:00:48]} Rc5 {[%emt 0:00:35]} 31. Rxc5 {[%emt 0:00:47]} Qxc5 {[%emt 0:00:08]} 32. Qd3 {[%emt 0:00:26]} a5 {[%emt 0:03:26]} 33. Na4 {[%emt 0:00:59]} Qc1 {[%emt 0:01:33]} 34. Nb6 {[%emt 0:02:21]} Rb8 {[%emt 0:01:43]} 35. Nc4 {[%emt 0:01:00]} Rc8 {[%emt 0:00:36]} 36. Nxa5 {[%emt 0:00:44]} Rc2 {[%emt 0:00:22]} 37. Nc6 {[%emt 0:00:39]} Rxb2 {[%emt 0:01:32]} 38. Qb5 {[%emt 0:01:00]} Rd2 {[%emt 0:00:41]} 39. Qb4 {[%emt 0:02:38]} Rd1 {[%emt 0:00:37]} 40. Re3 {[%emt 0:00:59]} Rg1+ {[%emt 0:01:36]} 41. Kf3 {[%emt 0:30:29]} Qf1 {[%emt 0:07:11]} 42. h4 {[%emt 0:00:00]} Qg2+ {[%emt 0:05:05]} 43. Ke2 {[%emt 0:00:00]} Rf1 {[%emt 0:01:17]} 44. Rf3 {[%emt 0:00:00]} Rc1 {[%emt 0:02:46]} 45. Rf4 {[%emt 0:00:00]} Qf1+ {[%emt 0:02:31]} 46. Ke3 {[%emt 0:00:00]} Re1+ {[%emt 0:02:45]} 0-1

[Event "CZE-ch 2020"]
[Site "Pilsen"]
[Date "2020.08.27"]
[Round "5.32"]
[White "Folk, Petr"]
[Black "Simek, Petr"]
[Result "1/2-1/2"]
[ECO "B33"]
[WhiteElo "2122"]
[BlackElo "2324"]
[Annotator "ChessBase"]
[PlyCount "92"]
[EventDate "2020.08.23"]
[EventType "swiss"]
[EventCountry "CZE"]
[SourceTitle "playchess.com"]
[Source "ChessBase"]
[SourceQuality "1"]
[TimeControl "40/5400+30:1800+30"]

1. e4 {[%emt 0:00:00]} c5 {[%emt 0:00:00]} 2. Nf3 {[%emt 0:00:00]} Nc6 {[%emt 0:00:00]} 3. d4 {[%emt 0:00:03]} cxd4 {[%emt 0:00:00]} 4. Nxd4 {[%emt 0:00:01]} Nf6 {[%emt 0:00:00]} 5. Nc3 {[%emt 0:00:05]} e5 {[%emt 0:00:04]} 6. Ndb5 {[%emt 0:00:06]} d6 {[%emt 0:00:08]} 7. Bg5 {[%emt 0:00:10]} a6 {[%emt 0:00:08]} 8. Na3 {[%emt 0:00:06]} b5 {[%emt 0:00:07]} 9. Nd5 {[%emt 0:01:16]} Be7 {[%emt 0:00:09]} 10. Bxf6 {[%emt 0:00:08]} Bxf6 {[%emt 0:00:06]} 11. c4 {[%emt 0:00:38]} b4 {[%emt 0:00:07]} 12. Nc2 {[%emt 0:00:06]} O-O {[%emt 0:00:11]} 13. g3 {[%emt 0:04:10]} a5 {[%emt 0:00:05]} 14. b3 {[%emt 0:00:50]} g6 {[%emt 0:17:38]} 15. Bg2 {[%emt 0:04:17]} Bg7 {[%emt 0:00:27]} 16. O-O {[%emt 0:05:01]} Be6 {[%emt 0:00:55]} 17. Qd2 {[%emt 0:10:05]} Ra7 {[%emt 0:02:54]} 18. a3 {[%emt 0:04:14]} bxa3 {[%emt 0:08:29]} 19. Rxa3 {[%emt 0:01:52]} Qb8 {[%emt 0:00:35]} 20. Nc3 {[%emt 0:06:50]} Rc8 {[%emt 0:07:04]} 21. Nb5 {[%emt 0:06:19]} Rd7 {[%emt 0:08:15]} 22. Rd1 {[%emt 0:01:32]} Bf8 {[%emt 0:08:36]} 23. Raa1 {[%emt 0:04:48]} Be7 {[%emt 0:05:52]} 24. h4 {[%emt 0:05:37]} Kg7 {[%emt 0:11:04]} 25. Kh2 {[%emt 0:04:13]} Rf8 {[%emt 0:10:35]} 26. Ne3 {[%emt 0:11:35]} Qb6 {[%emt 0:12:09]} 27. Nd5 {[%emt 0:05:16]} Bxd5 {[%emt 0:00:06]} 28. Qxd5 {[%emt 0:04:32]} Nb4 {[%emt 0:00:06]} 29. Qd2 {[%emt 0:02:17]} f5 {[%emt 0:06:12]} 30. Nc3 {[%emt 0:01:33]} Rdd8 {[%emt 0:02:24]} 31. Rf1 {[%emt 0:01:58]} f4 {[%emt 0:00:31]} 32. Bh3 {[%emt 0:02:32]} Rf6 {[%emt 0:00:19]} 33. Na4 {[%emt 0:03:57]} Qa7 {[%emt 0:00:28]} 34. Nb2 {[%emt 0:00:17]} Qb6 {[%emt 0:00:12]} 35. Na4 {[%emt 0:01:19]} Qc7 {[%emt 0:00:22]} 36. Nc3 {[%emt 0:01:04]} Rdf8 {[%emt 0:00:24]} 37. Nd5 {[%emt 0:01:43]} Nxd5 {[%emt 0:00:02]} 38. Qxd5 {[%emt 0:00:23]} Qb6 {[%emt 0:00:53]} 39. c5 {[%emt 0:03:24]} dxc5 {[%emt 0:01:18]} 40. Qxe5 {[%emt 0:00:31]} Bd6 {[%emt 0:00:28]} 41. Qc3 {[%emt 0:07:27]} Qb4 {[%emt 0:28:47]} 42. Qxb4 {[%emt 0:01:44]} axb4 {[%emt 0:00:31]} 43. Rad1 {[%emt 0:12:43]} fxg3+ {[%emt 0:01:42]} 44. fxg3 {[%emt 0:00:20]} Rxf1 {[%emt 0:00:06]} 45. Rxf1 {[%emt 0:00:15]} Rxf1 {[%emt 0:00:05]} 46. Bxf1 {[%emt 0:00:04]} h5 {[%emt 0:00:10]} 1/2-1/2

[Event "CZE-ch 2020"]
[Site "Pilsen"]
[Date "2020.08.27"]
[Round "5.33"]
[White "Pychova, Nela"]
[Black "Kopriva, Martin"]
[Result "1-0"]
[ECO "A10"]
[WhiteElo "2159"]
[BlackElo "2079"]
[Annotator "ChessBase"]
[PlyCount "109"]
[EventDate "2020.08.23"]
[EventType "swiss"]
[EventCountry "CZE"]
[SourceTitle "playchess.com"]
[Source "ChessBase"]
[SourceQuality "1"]
[TimeControl "40/5400+30:1800+30"]

1. c4 {[%emt 0:00:00]} g6 {[%emt 0:00:00]} 2. Nc3 {[%emt 0:00:00]} Bg7 {[%emt 0:00:00]} 3. g3 {[%emt 0:00:00]} c5 {[%emt 0:00:47]} 4. Bg2 {[%emt 0:00:08]} d6 {[%emt 0:00:42]} 5. Nf3 {[%emt 0:00:42]} Nc6 {[%emt 0:00:39]} 6. O-O {[%emt 0:00:29]} Nf6 {[%emt 0:00:44]} 7. a3 {[%emt 0:05:11]} O-O {[%emt 0:01:31]} 8. Rb1 {[%emt 0:02:27]} a5 {[%emt 0:06:14]} 9. d3 {[%emt 0:03:34]} h6 {[%emt 0:04:48]} 10. Ne1 {[%emt 0:02:34]} Ne8 {[%emt 0:07:30]} 11. Bd2 {[%emt 0:02:03]} e5 {[%emt 0:06:05]} 12. Nc2 {[%emt 0:01:45]} f5 {[%emt 0:20:09]} 13. b4 {[%emt 0:04:07]} axb4 {[%emt 0:00:46]} 14. axb4 {[%emt 0:00:07]} Nc7 {[%emt 0:12:10]} 15. bxc5 {[%emt 0:08:14]} dxc5 {[%emt 0:00:39]} 16. Nd5 {[%emt 0:01:29]} Kh7 {[%emt 0:04:08]} 17. Nb6 {[%emt 0:13:11]} Ra6 {[%emt 0:03:46]} 18. Nxc8 {[%emt 0:08:30]} Qxc8 {[%emt 0:00:01]} 19. Bc3 {[%emt 0:03:41]} Ne8 {[%emt 0:08:27]} 20. Qc1 {[%emt 0:06:35]} Rf7 {[%emt 0:02:52]} 21. Qb2 {[%emt 0:01:42]} Qc7 {[%emt 0:04:58]} 22. Ne3 {[%emt 0:10:47]} Qd6 {[%emt 0:01:11]} 23. Nd5 {[%emt 0:03:18]} Nf6 {[%emt 0:01:25]} 24. Ra1 {[%emt 0:05:43]} Rxa1 {[%emt 0:01:09]} 25. Rxa1 {[%emt 0:00:33]} Nxd5 {[%emt 0:01:44]} 26. Bxd5 {[%emt 0:00:18]} Re7 {[%emt 0:00:55]} 27. Ra8 {[%emt 0:01:10]} Bf6 {[%emt 0:03:47]} 28. Qb6 {[%emt 0:04:21]} e4 {[%emt 0:02:56]} 29. Bxf6 {[%emt 0:04:57]} Qxf6 {[%emt 0:00:01]} 30. dxe4 {[%emt 0:02:00]} fxe4 {[%emt 0:00:49]} 31. Bxc6 {[%emt 0:01:48]} e3 {[%emt 0:00:56]} 32. f4 {[%emt 0:01:22]} bxc6 {[%emt 0:01:49]} 33. Ra7 {[%emt 0:01:45]} Qf7 {[%emt 0:00:55]} 34. Rxe7 {[%emt 0:00:25]} Qxe7 {[%emt 0:00:01]} 35. Qxc6 {[%emt 0:00:12]} Qd8 {[%emt 0:01:05]} 36. Kg2 {[%emt 0:02:04]} Qe7 {[%emt 0:01:43]} 37. Kf3 {[%emt 0:00:30]} Qa7 {[%emt 0:00:34]} 38. Kxe3 {[%emt 0:00:37]} Qa1 {[%emt 0:00:27]} 39. Qd7+ {[%emt 0:00:13]} Kg8 {[%emt 0:00:25]} 40. Qc8+ {[%emt 0:00:12]} Kh7 {[%emt 0:00:34]} 41. Qc7+ {[%emt 0:04:22]} Kg8 {[%emt 0:00:00]} 42. Qd8+ {[%emt 0:00:06]} Kg7 {[%emt 0:02:22]} 43. Qe7+ {[%emt 0:12:09]} Kg8 {[%emt 0:00:12]} 44. Qe6+ {[%emt 0:02:47]} Kh7 {[%emt 0:01:21]} 45. Qf7+ {[%emt 0:00:58]} Kh8 {[%emt 0:00:09]} 46. Qxg6 {[%emt 0:00:49]} Qc1+ {[%emt 0:01:38]} 47. Kf2 {[%emt 0:01:13]} Qxc4 {[%emt 0:00:42]} 48. Qxh6+ {[%emt 0:04:20]} Kg8 {[%emt 0:00:01]} 49. Qg6+ {[%emt 0:00:19]} Kf8 {[%emt 0:01:10]} 50. Qf6+ {[%emt 0:00:51]} Kg8 {[%emt 0:00:28]} 51. h4 {[%emt 0:00:47]} Qa4 {[%emt 0:04:57]} 52. h5 {[%emt 0:01:00]} Qa7 53. h6 {[%emt 0:01:29]} c4+ {[%emt 0:00:14]} 54. Ke1 {[%emt 0:01:12]} Qa1+ {[%emt 0:02:10]} 55. Qxa1 {[%emt 0:00:09]} 1-0

[Event "CZE-ch 2020"]
[Site "Pilsen"]
[Date "2020.08.27"]
[Round "5.34"]
[White "Smolik, Jachym"]
[Black "Taus, Martin"]
[Result "1-0"]
[ECO "A40"]
[WhiteElo "2121"]
[BlackElo "2142"]
[Annotator "ChessBase"]
[PlyCount "91"]
[EventDate "2020.08.23"]
[EventType "swiss"]
[EventCountry "CZE"]
[SourceTitle "playchess.com"]
[Source "ChessBase"]
[SourceQuality "1"]
[TimeControl "40/5400+30:1800+30"]

1. d4 {[%emt 0:00:00]} e6 {[%emt 0:00:08]} 2. Nf3 {[%emt 0:00:15]} f5 {[%emt 0:01:11]} 3. e3 {[%emt 0:02:30]} Nf6 {[%emt 0:00:53]} 4. Bd3 {[%emt 0:00:10]} b6 {[%emt 0:00:20]} 5. O-O {[%emt 0:00:52]} Bb7 {[%emt 0:00:04]} 6. b3 {[%emt 0:00:35]} Bd6 {[%emt 0:11:35]} 7. Ba3 {[%emt 0:22:33]} c5 {[%emt 0:07:47]} 8. dxc5 {[%emt 0:04:24]} bxc5 {[%emt 0:05:15]} 9. Be2 {[%emt 0:03:23]} Ne4 {[%emt 0:06:29]} 10. Bb2 {[%emt 0:13:31]} O-O {[%emt 0:02:08]} 11. Nc3 {[%emt 0:03:43]} Qb6 {[%emt 0:07:19]} 12. Nxe4 {[%emt 0:11:24]} fxe4 {[%emt 0:05:08]} 13. Nd2 {[%emt 0:00:06]} Qc7 {[%emt 0:00:48]} 14. h3 {[%emt 0:00:52]} Be7 {[%emt 0:05:45]} 15. Bg4 {[%emt 0:00:10]} Bf6 {[%emt 0:11:15]} 16. Bxf6 {[%emt 0:01:54]} Rxf6 {[%emt 0:00:43]} 17. c4 {[%emt 0:00:03]} d5 {[%emt 0:04:36]} 18. Qc2 {[%emt 0:01:34]} Nd7 {[%emt 0:05:53]} 19. cxd5 {[%emt 0:01:29]} exd5 {[%emt 0:00:46]} 20. Bxd7 {[%emt 0:00:44]} Qxd7 {[%emt 0:00:05]} 21. Qxc5 {[%emt 0:00:03]} Ba6 {[%emt 0:09:06]} 22. Rfd1 {[%emt 0:04:42]} Qf7 {[%emt 0:03:48]} 23. f4 {[%emt 0:08:01]} Rc8 {[%emt 0:01:42]} 24. Qd4 {[%emt 0:01:29]} Rfc6 {[%emt 0:00:31]} 25. b4 {[%emt 0:01:45]} Be2 {[%emt 0:01:26]} 26. Re1 {[%emt 0:01:57]} Bd3 {[%emt 0:00:10]} 27. Nb3 {[%emt 0:01:31]} Rc4 {[%emt 0:02:19]} 28. Rac1 {[%emt 0:00:05]} Qb7 {[%emt 0:04:40]} 29. Qe5 {[%emt 0:01:52]} Rxc1 {[%emt 0:01:17]} 30. Rxc1 {[%emt 0:00:01]} Rxc1+ {[%emt 0:00:16]} 31. Nxc1 {[%emt 0:00:02]} Qc6 {[%emt 0:00:44]} 32. Qb8+ {[%emt 0:00:56]} Kf7 {[%emt 0:00:03]} 33. Qxa7+ {[%emt 0:00:02]} Kg6 {[%emt 0:00:20]} 34. Qc5 {[%emt 0:00:51]} Qa4 {[%emt 0:00:03]} 35. Qd6+ {[%emt 0:01:17]} Kf7 {[%emt 0:00:08]} 36. Qxd5+ {[%emt 0:00:00]} Ke7 {[%emt 0:00:00]} 37. Qc5+ {[%emt 0:01:17]} Kf7 {[%emt 0:00:27]} 38. Nxd3 {[%emt 0:00:26]} Qd1+ {[%emt 0:00:13]} 39. Ne1 {[%emt 0:00:01]} Qxe1+ {[%emt 0:00:08]} 40. Kh2 {[%emt 0:00:03]} g6 {[%emt 0:00:23]} 41. Qd5+ {[%emt 0:31:16]} Kf6 {[%emt 0:30:25]} 42. Qxe4 {[%emt 0:00:29]} h5 {[%emt 0:00:05]} 43. Qe5+ {[%emt 0:00:49]} Kf7 {[%emt 0:00:04]} 44. f5 {[%emt 0:01:16]} g5 {[%emt 0:00:08]} 45. Qe6+ {[%emt 0:00:09]} Kf8 {[%emt 0:00:09]} 46. Qf6+ {[%emt 0:00:08]} 1-0